fUSD/lending_fUSD_20240117
["ID","MTS","AMOUNT","RATE_DAILY","PERIOD"]
[311882728,1705487433244,-500.0,0.00021917,2]
[311882729,1705487433254,-500.0,0.00021917,2]
[311882730,1705487433263,-509.9028441,0.00021917,2]
[311882731,1705487433273,-504.1915595,0.00021917,2]
[311882732,1705487433282,-500.0,0.00021917,2]
[311882733,1705487433292,-500.0,0.00021917,2]
[311882735,1705487433301,-500.0,0.00021917,2]
[311882737,1705487433311,-664.86,0.00021917,2]
[311882739,1705487433320,-737.58,0.00021917,2]
[311882740,1705487433330,-500.0,0.00021917,2]
[311882741,1705487433339,-500.0,0.00021917,2]
[311882742,1705487433348,-500.0,0.00021917,2]
[311882743,1705487433358,-913.57,0.00021917,2]
[311882744,1705487433367,-503.79900172,0.00021917,2]
[311882745,1705487433376,-500.0,0.00021917,2]
[311882746,1705487433386,-500.0,0.00021917,2]
[311882747,1705487433395,-500.0,0.00021917,2]
[311882748,1705487433404,-500.0,0.00021917,2]
[311882749,1705487433413,-500.0,0.00021917,2]
[311882750,1705487433423,-500.0,0.00021917,2]
[311882751,1705487433433,-500.0,0.00021917,2]
[311882752,1705487433443,-500.0,0.00021917,2]
[311882753,1705487433452,-501.17599752,0.00021917,2]
[311882754,1705487433462,-189.29508862,0.00021917,2]
[311882757,1705487438204,-310.70491138,0.00021917,2]
[311882758,1705487438213,-500.0,0.00021917,2]
[311882759,1705487438222,-502.35003294,0.00021917,2]
[311882760,1705487438232,-691.17,0.00021917,2]
[311882761,1705487438241,-500.0,0.00021917,2]
[311882762,1705487438250,-500.0,0.00021917,2]
[311882763,1705487438259,-500.0,0.00021917,2]
[311882765,1705487438268,-500.0,0.00021917,2]
[311882767,1705487438277,-500.0,0.00021917,2]
[311882769,1705487438285,-713.56,0.00021917,2]
[311882771,1705487438294,-500.0,0.00021917,2]
[311882773,1705487438304,-500.0,0.00021917,2]
[311882775,1705487438312,-500.0,0.00021917,2]
[311882777,1705487438322,-500.0,0.00021917,2]
[311882779,1705487438331,-504.83666512,0.00021917,2]
[311882781,1705487438340,-500.0,0.00021917,2]
[311882783,1705487438349,-500.0,0.00021917,2]
[311882785,1705487438358,-509.6998576,0.00021917,2]
[311882787,1705487438368,-194.67140412,0.00021917,2]
[311882789,1705487438377,-500.0,0.00021917,2]
[311882791,1705487438387,-500.0,0.00021917,2]
[311882793,1705487438396,-646.64997399,0.00021917,2]
[311882795,1705487438405,-500.0,0.00021917,2]
[311882797,1705487438414,-500.0,0.00021917,2]
[311882799,1705487438423,-500.0,0.00021917,2]
[311882800,1705487438434,-500.0,0.00021917,2]
[311882801,1705487438444,-500.0,0.00021917,2]
[311882802,1705487438453,-500.0,0.00021917,2]
[311882803,1705487438463,-500.0,0.00021917,2]
[311882804,1705487438472,-500.0,0.00021917,2]
[311882805,1705487438481,-521.8,0.00021917,2]
[311882806,1705487438490,-500.0,0.00021917,2]
[311882807,1705487438500,-553.73,0.00021917,2]
[311882808,1705487438509,-185.85880195,0.00021917,2]
[311882809,1705487438518,-1000.0,0.00021917,2]
[311882810,1705487438527,-504.17,0.00021917,2]
[311882811,1705487438536,-500.0,0.00021917,2]
[311882812,1705487438545,-500.0,0.00021917,2]
[311882813,1705487438554,-500.0,0.00021917,2]
[311882814,1705487438563,-507.34616263,0.00021917,2]
[311882815,1705487438572,-681.67,0.00021917,2]
[311882816,1705487438581,-496.56033181,0.00021917,2]
[311882817,1705487438590,-341.95606426,0.00021917,2]
[311882821,1705487440917,-158.04393574,0.00021917,2]
[311882822,1705487440927,-119.92716429,0.00021917,2]
[311882823,1705487440977,-380.07283571,0.00021917,2]
[311882824,1705487440986,-500.0,0.00021917,2]
[311882825,1705487440996,-500.0,0.00021917,2]
[311882826,1705487441005,-500.0,0.00021917,2]
[311882827,1705487441014,-514.6,0.00021917,2]
[311882828,1705487441023,-509.3870076,0.00021917,2]
[311882829,1705487441032,-500.0,0.00021917,2]
[311882830,1705487441041,-500.0,0.00021917,2]
[311882831,1705487441050,-556.89,0.00021917,2]
[311882832,1705487441059,-500.0,0.00021917,2]
[311882833,1705487441068,-397.32982048,0.00021917,2]
[311882834,1705487441077,-500.0,0.00021917,2]
[311882835,1705487441086,-500.0,0.00021917,2]
[311882836,1705487441096,-752.14,0.00021917,2]
[311882838,1705487441108,-701.84,0.00021917,2]
[311882841,1705487441145,-500.0,0.00021917,2]
[311882843,1705487441155,-500.0,0.00021917,2]
[311882845,1705487441165,-500.0,0.00021917,2]
[311882846,1705487441174,-500.0,0.00021917,2]
[311882847,1705487441184,-500.0,0.00021917,2]
[311882848,1705487441195,-500.0,0.00021917,2]
[311882849,1705487441205,-500.0,0.00021917,2]
[311882850,1705487441216,-500.0,0.00021917,2]
[311882851,1705487441226,-500.0,0.00021917,2]
[311882852,1705487441239,-500.0,0.00021917,2]
[311882853,1705487441249,-500.0,0.00021917,2]
[311882854,1705487441259,-500.0,0.00021917,2]
[311882855,1705487441270,-525.47819927,0.00021917,2]
[311882856,1705487441280,-500.0,0.00021917,2]
[311882857,1705487441290,-565.45,0.00021917,2]
[311882858,1705487441300,-500.0,0.00021917,2]
[311882859,1705487441310,-500.0,0.00021917,2]
[311882860,1705487441321,-500.0,0.00021917,2]
[311882861,1705487441331,-500.0,0.00021917,2]
[311882862,1705487441341,-500.0,0.00021917,2]
[311882863,1705487441352,-500.0,0.00021917,2]
[311882864,1705487441362,-500.0,0.00021917,2]
[311882865,1705487441371,-595.85,0.00021917,2]
[311882866,1705487441381,-500.0,0.00021917,2]
[311882867,1705487441390,-500.0,0.00021917,2]
[311882868,1705487441401,-500.0,0.00021917,2]
[311882869,1705487441411,-500.0,0.00021917,2]
[311882870,1705487441421,-500.0,0.00021917,2]
[311882871,1705487441431,-500.0,0.00021917,2]
[311882872,1705487441441,-500.0,0.00021917,2]
[311882873,1705487441451,-500.0,0.00021917,2]
[311882874,1705487441461,-500.0,0.00021917,2]
[311882875,1705487441472,-500.0,0.00021917,2]
[311882876,1705487441482,-500.0,0.00021917,2]
[311882877,1705487441492,-565.9,0.00021917,2]
[311882878,1705487441504,-554.77,0.00021917,2]
[311882879,1705487441515,-500.0,0.00021917,2]
[311882880,1705487441525,-500.0,0.00021917,2]
[311882881,1705487441534,-500.0,0.00021917,2]
[311882882,1705487441545,-500.0,0.00021917,2]
[311882883,1705487441555,-500.0,0.00021917,2]
[311882884,1705487441567,-500.0,0.00021917,2]
[311882885,1705487441576,-816.24,0.00021917,2]
[311882886,1705487441586,-500.0,0.00021917,2]
[311882887,1705487441596,-500.0,0.00021917,2]
[311882888,1705487441608,-708.42,0.00021917,2]
[311882889,1705487441619,-500.0,0.00021917,2]
[311882890,1705487441630,-500.0,0.00021917,2]
[311882891,1705487441640,-500.0,0.00021917,2]
[311882892,1705487441651,-500.0,0.00021917,2]
[311882893,1705487441661,-622.12,0.00021917,2]
[311882894,1705487441670,-500.0,0.00021917,2]
[311882895,1705487441680,-500.0,0.00021917,2]
[311882896,1705487441690,-1071.39,0.00021917,2]
[311882897,1705487441702,-533.43192344,0.00021917,2]
[311882898,1705487441712,-500.0,0.00021917,2]
[311882899,1705487441723,-500.0,0.00021917,2]
[311882900,1705487441733,-500.0,0.00021917,2]
[311882901,1705487441742,-500.0,0.00021917,2]
[311882902,1705487441753,-500.0,0.00021917,2]
[311882903,1705487441763,-500.0,0.00021917,2]
[311882904,1705487441773,-500.0,0.00021917,2]
[311882905,1705487441782,-500.0,0.00021917,2]
[311882906,1705487441793,-500.0,0.00021917,2]
[311882907,1705487441803,-693.95,0.00021917,2]
[311882908,1705487441812,-500.0,0.00021917,2]
[311882909,1705487441822,-164.05746256,0.00021917,2]
[311882934,1705487442983,-161.21566279,0.00021917,2]
[311882935,1705487442993,-353.37810442,0.00021917,2]
[311882936,1705487443039,-146.62189558,0.00021917,2]
[311882937,1705487443049,-500.0,0.00021917,2]
[311882938,1705487443058,-381.57487848,0.00021917,2]
[311882939,1705487443067,-958.24,0.00021917,2]
[311882940,1705487443076,-816.37,0.00021917,2]
[311882941,1705487443085,-500.0,0.00021917,2]
[311882942,1705487443094,-702.72,0.00021917,2]
[311882943,1705487443103,-500.0,0.00021917,2]
[311882944,1705487443112,-451.31255509,0.00021917,2]
[311882945,1705487443122,-1384.34,0.00021917,2]
[311882946,1705487443131,-675.9,0.00021917,2]
[311882947,1705487443141,-568.92909789,0.00021917,2]
[311882948,1705487443151,-500.0,0.00021917,2]
[311882949,1705487443161,-654.04,0.00021917,2]
[311882950,1705487443170,-436.87202318,0.00021917,2]
[311882951,1705487443183,-63.12797682,0.00021917,2]
[311882952,1705487443192,-624.27,0.00021917,2]
[311882953,1705487443201,-817.23,0.00021917,2]
[311882954,1705487443210,-500.0,0.00021917,2]
[311882955,1705487443219,-500.0,0.00021917,2]
[311882956,1705487443229,-1174.28,0.00021917,2]
[311882957,1705487443238,-500.0,0.00021917,2]
[311882958,1705487443248,-500.0,0.00021917,2]
[311882959,1705487443258,-500.0,0.00021917,2]
[311882960,1705487443269,-500.0,0.00021917,2]
[311882961,1705487443280,-500.0,0.00021917,2]
[311882962,1705487443293,-500.0,0.00021917,2]
[311882963,1705487443305,-264.24271368,0.00021917,2]
[311882964,1705487443317,-235.75728632,0.00021917,2]
[311882965,1705487443327,-587.38,0.00021917,2]
[311882966,1705487443338,-599.22,0.00021917,2]
[311882967,1705487443348,-500.0,0.00021917,2]
[311882968,1705487443358,-347.42092532,0.00021917,2]
[311882969,1705487443368,-500.0,0.00021917,2]
[311882970,1705487443377,-1004.53,0.00021917,2]
[311882971,1705487443388,-500.0,0.00021917,2]
[311882972,1705487443398,-500.0,0.00021917,2]
[311882973,1705487443409,-890.57,0.00021917,2]
[311882974,1705487443419,-500.0,0.00021917,2]
[311882975,1705487443429,-500.0,0.00021917,2]
[311882976,1705487443439,-500.0,0.00021917,2]
[311882977,1705487443450,-500.0,0.00021917,2]
[311882978,1705487443458,-500.0,0.00021917,2]
[311882979,1705487443467,-546.71,0.00021917,2]
[311882980,1705487443477,-500.0,0.00021917,2]
[311882981,1705487443487,-300.0,0.00021917,2]
[311882982,1705487443496,-504.00192607,0.00021917,2]
[311882983,1705487443506,-500.0,0.00021917,2]
[311882984,1705487443515,-500.0,0.00021917,2]
[311882985,1705487443525,-691.83,0.00021917,2]
[311882986,1705487443535,-515.59804641,0.00021917,2]
[311882987,1705487443545,-500.0,0.00021917,2]
[311882988,1705487443555,-500.0,0.00021917,2]
[311882989,1705487443565,-500.0,0.00021917,2]
[311882990,1705487443574,-744.88,0.00021917,2]
[311882991,1705487443584,-500.0,0.00021917,2]
[311882992,1705487443594,-500.0,0.00021917,2]
[311882993,1705487443609,-641.11,0.00021917,2]
[311882994,1705487443625,-500.0,0.00021917,2]
[311882995,1705487443635,-500.0,0.00021917,2]
[311882996,1705487443645,-500.0,0.00021917,2]
[311882997,1705487443657,-500.0,0.00021917,2]
[311882998,1705487443667,-500.0,0.00021917,2]
[311882999,1705487443676,-474.23366363,0.00021917,2]
[311883000,1705487443793,-55.72863516,0.00021917,2]
[311883001,1705487443802,-500.0,0.00021917,2]
[311883002,1705487443811,-500.0,0.00021917,2]
[311883003,1705487443821,-828.47,0.00021917,2]
[311883004,1705487443830,-500.0,0.00021917,2]
[311883005,1705487443839,-1063.43,0.00021917,2]
[311883006,1705487443849,-500.0,0.00021917,2]
[311883007,1705487443858,-325.06434484,0.00021917,2]
[311883008,1705487443869,-174.93565516,0.00021917,2]
[311883009,1705487443878,-539.23,0.00021917,2]
[311883010,1705487443887,-9.82903586,0.00021917,2]
[311883019,1705487445889,-490.17096414,0.00021917,2]
[311883020,1705487445899,-500.0,0.00021917,2]
[311883021,1705487445908,-736.42,0.00021917,2]
[311883022,1705487445918,-500.0,0.00021917,2]
[311883023,1705487445928,-500.0,0.00021917,2]
[311883024,1705487445937,-500.0,0.00021917,2]
[311883025,1705487445947,-500.0,0.00021917,2]
[311883026,1705487445963,-1661.74,0.00021917,2]
[311883027,1705487445973,-500.0,0.00021917,2]
[311883028,1705487445982,-834.97,0.00021917,2]
[311883029,1705487446281,-500.0,0.00021917,2]
[311883030,1705487446291,-500.0,0.00021917,2]
[311883031,1705487446301,-595.8,0.00021917,2]
[311883032,1705487446310,-500.0,0.00021917,2]
[311883033,1705487446320,-525.72543687,0.00021917,2]
[311883035,1705487446329,-500.0,0.00021917,2]
[311883037,1705487446338,-504.40616928,0.00021917,2]
[311883039,1705487446347,-1267.96,0.00021917,2]
[311883041,1705487446356,-500.0,0.00021917,2]
[311883043,1705487446365,-500.0,0.00021917,2]
[311883046,1705487446378,-500.0,0.00021917,2]
[311883047,1705487446387,-500.0,0.00021917,2]
[311883048,1705487446397,-500.0,0.00021917,2]
[311883049,1705487446406,-500.0,0.00021917,2]
[311883050,1705487446415,-500.0,0.00021917,2]
[311883051,1705487446424,-604.83,0.00021917,2]
[311883052,1705487446434,-500.0,0.00021917,2]
[311883053,1705487446443,-500.0,0.00021917,2]
[311883054,1705487446452,-500.0,0.00021917,2]
[311883055,1705487446462,-500.0,0.00021917,2]
[311883056,1705487446472,-755.57,0.00021917,2]
[311883057,1705487446481,-529.02,0.00021917,2]
[311883058,1705487446491,-902.92,0.00021917,2]
[311883059,1705487446500,-111.41363944,0.00021917,2]
[311883060,1705487446514,-388.58636056,0.00021917,2]
[311883061,1705487446524,-500.0,0.00021917,2]
[311883062,1705487446533,-9.50036524,0.00021917,2]
[311883063,1705487446550,-490.49963476,0.00021917,2]
[311883064,1705487446560,-500.0,0.00021917,2]
[311883065,1705487446569,-1209.72,0.00021917,2]
[311883066,1705487446578,-500.0,0.00021917,2]
[311883067,1705487446588,-534.68574899,0.00021917,2]
[311883068,1705487446597,-500.0,0.00021917,2]
[311883069,1705487446606,-500.0,0.00021917,2]
[311883070,1705487446617,-500.0,0.00021917,2]
[311883071,1705487446627,-500.0,0.00021917,2]
[311883072,1705487446638,-500.0,0.00021917,2]
[311883073,1705487446647,-500.0,0.00021917,2]
[311883074,1705487446657,-524.82715653,0.00021917,2]
[311883075,1705487446666,-500.0,0.00021917,2]
[311883076,1705487446676,-500.0,0.00021917,2]
[311883077,1705487446685,-500.0,0.00021917,2]
[311883078,1705487446697,-500.0,0.00021917,2]
[311883079,1705487446711,-500.0,0.00021917,2]
[311883080,1705487446721,-571.23,0.00021917,2]
[311883081,1705487446731,-500.0,0.00021917,2]
[311883082,1705487446740,-500.0,0.00021917,2]
[311883083,1705487446750,-500.0,0.00021917,2]
[311883084,1705487446760,-500.0,0.00021917,2]
[311883085,1705487446770,-500.0,0.00021917,2]
[311883086,1705487446779,-500.0,0.00021917,2]
[311883087,1705487446789,-500.0,0.00021917,2]
[311883088,1705487446798,-535.24,0.00021917,2]
[311883089,1705487446808,-500.0,0.00021917,2]
[311883090,1705487446817,-58.79524741,0.00021917,2]
[311883091,1705487446836,-841.26475259,0.00021917,2]
[311883092,1705487446846,-307.7261194,0.00021917,2]
[311883093,1705487446884,-342.86944527,0.00021916,2]
[311883094,1705487446894,-233.7138806,0.00021917,2]
[311883095,1705487446904,-237.6188796,0.00021917,2]
[311883096,1705487446915,-262.3811204,0.00021917,2]
[311883097,1705487446925,-790.05,0.00021917,2]
[311883098,1705487446935,-270.41667413,0.00021917,2]
[311883099,1705487446958,-827.58332587,0.00021917,2]
[311883100,1705487446967,-710.25,0.00021917,2]
[311883101,1705487446977,-500.0,0.00021917,2]
[311883102,1705487446987,-500.0,0.00021917,2]
[311883103,1705487446996,-1578.43,0.00021917,2]
[311883104,1705487447005,-500.0,0.00021917,2]
[311883105,1705487447015,-500.0,0.00021917,2]
[311883106,1705487447024,-500.0,0.00021917,2]
[311883107,1705487447033,-500.0,0.00021917,2]
[311883108,1705487447043,-984.21,0.00021917,2]
[311883109,1705487447052,-676.26,0.00021917,2]
[311883110,1705487447062,-500.0,0.00021917,2]
[311883111,1705487447071,-1057.33,0.00021917,2]
[311883112,1705487447080,-500.0,0.00021917,2]
[311883113,1705487447090,-500.0,0.00021917,2]
[311883114,1705487447100,-500.0,0.00021917,2]
[311883115,1705487447109,-500.0,0.00021917,2]
[311883116,1705487447119,-601.08,0.00021917,2]
[311883117,1705487447129,-500.0,0.00021917,2]
[311883118,1705487447138,-500.0,0.00021917,2]
[311883119,1705487447147,-615.33,0.00021917,2]
[311883120,1705487447157,-500.0,0.00021917,2]
[311883121,1705487447166,-500.0,0.00021917,2]
[311883122,1705487447175,-518.04,0.00021917,2]
[311883123,1705487447185,-658.1,0.00021917,2]
[311883124,1705487447195,-819.13,0.00021917,2]
[311883125,1705487447205,-500.0,0.00021917,2]
[311883126,1705487447215,-500.0,0.00021917,2]
[311883127,1705487447224,-500.0,0.00021917,2]
[311883128,1705487447234,-530.3,0.00021917,2]
[311883129,1705487447243,-500.0,0.00021917,2]
[311883130,1705487447254,-1225.63,0.00021917,2]
[311883131,1705487447264,-500.0,0.00021917,2]
[311883132,1705487447274,-822.67,0.00021917,2]
[311883133,1705487447283,-500.0,0.00021917,2]
[311883134,1705487447293,-897.22,0.00021917,2]
[311883135,1705487447302,-500.0,0.00021917,2]
[311883136,1705487447312,-500.0,0.00021917,2]
[311883137,1705487447322,-500.0,0.00021917,2]
[311883138,1705487447331,-500.0,0.00021917,2]
[311883139,1705487447341,-500.0,0.00021917,2]
[311883140,1705487447350,-1099.33,0.00021917,2]
[311883141,1705487447360,-500.0,0.00021917,2]
[311883142,1705487447370,-500.0,0.00021917,2]
[311883143,1705487447382,-837.79,0.00021917,2]
[311883144,1705487447392,-500.0,0.00021917,2]
[311883145,1705487447402,-500.0,0.00021917,2]
[311883146,1705487447412,-500.0,0.00021917,2]
[311883147,1705487447421,-750.57,0.00021917,2]
[311883148,1705487447431,-500.0,0.00021917,2]
[311883149,1705487447441,-500.0,0.00021917,2]
[311883150,1705487447451,-500.0,0.00021917,2]
[311883151,1705487447461,-660.16,0.00021917,2]
[311883152,1705487447470,-710.65,0.00021917,2]
[311883153,1705487447479,-887.39,0.00021917,2]
[311883154,1705487447489,-500.0,0.00021917,2]
[311883155,1705487447499,-676.18,0.00021917,2]
[311883156,1705487447508,-500.0,0.00021917,2]
[311883157,1705487447518,-172.15440268,0.00021917,2]
[311883164,1705487641405,171.02,0.00016797,2]
[311883165,1705487690396,2831.21,0.00016797,2]
[311883166,1705487690693,4000.0,0.00016797,2]
[311883167,1705487690714,4000.0,0.00016797,2]
[311883168,1705487690736,4000.0,0.00016797,2]
[311883169,1705487690757,4000.0,0.00016797,2]
[311883170,1705487690778,4000.0,0.00016797,2]
[311883171,1705487690798,4000.0,0.00016797,2]
[311883172,1705487690818,4000.0,0.00016797,2]
[311883173,1705487690841,4000.0,0.00016797,2]
[311883174,1705487690860,4000.0,0.00016797,2]
[311883175,1705487690884,1015.95886986,0.00016797,2]
[311883176,1705487700770,328.34,0.00019102,2]
[311883177,1705488141930,311.92,0.0001868,2]
[311883178,1705488160100,-155.0,0.00020579,2]
[311883179,1705488160125,-154.79,0.0002058,2]
[311883180,1705488160146,-2000.0,0.00020588,2]
[311883181,1705488160166,-200.0,0.00020731,2]
[311883182,1705488160187,-163.04,0.00020794,2]
[311883183,1705488160208,-230.4,0.00020886,2]
[311883184,1705488160230,-425.37,0.00020886,2]
[311883185,1705488160252,-311.92,0.00020944,2]
[311883186,1705488160276,-157.94,0.00021009,2]
[311883187,1705488160298,-216.66,0.00021013,2]
[311883188,1705488160319,-201.17650775,0.00021017,2]
[311883189,1705488160340,-201.17650766,0.00021074,2]
[311883190,1705488160360,-499.99,0.00021074,2]
[311883191,1705488160381,-769.6,0.00021117,2]
[311883192,1705488160403,-201.17650766,0.0002113,2]
[311883193,1705488160424,-201.17650766,0.00021187,2]
[311883194,1705488160447,-159.73,0.00021188,2]
[311883195,1705488160470,-201.17650766,0.00021243,2]
[311883196,1705488160492,-159.44,0.00021254,2]
[311883197,1705488160512,-201.17650766,0.000213,2]
[311883198,1705488160534,-201.17650766,0.00021356,2]
[311883199,1705488177636,171.02,0.00016724,2]
[311883200,1705488179563,-17450.81,0.00021366,2]
[311883201,1705488179587,-201.17650766,0.00021413,2]
[311883202,1705488179609,-159.73,0.00021464,2]
[311883203,1705488179631,-201.17650766,0.00021469,2]
[311883204,1705488179653,-201.17650766,0.00021526,2]
[311883205,1705488179675,-201.17650766,0.00021582,2]
[311883206,1705488179697,-201.17650766,0.00021639,2]
[311883207,1705488179718,-160.68,0.00021644,2]
[311883208,1705488179740,-201.17650766,0.00021695,2]
[311883209,1705488179762,-485.59833642,0.00021697,2]
[311883210,1705488179784,-159.73,0.0002174,2]
[311883211,1705488179807,-201.17650766,0.00021752,2]
[311883212,1705488179833,-201.17650766,0.00021808,2]
[311883213,1705488179860,-621.28477009,0.00021817,3]
[311883214,1705488179884,-31344.6192785,0.00021817,2]
[311883230,1705488633444,-2139.15,0.00020477,2]
[311883232,1705488633501,-465.87614452,0.00020477,2]
[311883233,1705488633511,-155.0,0.00020477,2]
[311883234,1705488633521,-1701.93042352,0.00020478,2]
[311883235,1705488633533,-408.25,0.00020478,2]
[311883236,1705488633559,-818.26057678,0.00020478,2]
[311883237,1705488633571,-38.5539997,0.00020478,2]
[311883238,1705488633580,-250.0,0.000205,2]
[311883239,1705488633590,-155.0,0.00020562,2]
[311883240,1705488633599,-42.24888701,0.00020562,2]
[311883245,1705488633836,-309.95931812,0.00020562,2]
[311883279,1705488634144,-691.64691173,0.00020562,2]
[311883281,1705488634153,-196.91428267,0.00020563,2]
[311883283,1705488634162,-200.0,0.00020578,2]
[311883285,1705488634171,-150.0,0.00020578,2]
[311883287,1705488634180,-448.91,0.00020582,2]
[311883289,1705488634189,-157.03,0.00020624,2]
[311883291,1705488634199,-316.88584693,0.00020746,2]
[311883295,1705488634232,-1683.11415307,0.00020746,2]
[311883297,1705488634241,-162.48,0.0002087,2]
[311883299,1705488634250,-167.64708975,0.00020914,2]
[311883301,1705488634259,-216.64,0.00020927,2]
[311883303,1705488634269,-300.0,0.00020982,2]
[311883305,1705488634278,-150.0,0.00020982,2]
[311883307,1705488634287,-150.0,0.00020982,2]
[311883309,1705488634296,-10642.94,0.00020983,2]
[311883311,1705488634305,-150.0,0.00021014,2]
[311883313,1705488634315,-3188.36893674,0.00021038,2]
[311883315,1705488634324,-419.78554962,0.00021038,2]
[311883317,1705488634335,-150.99,0.00021038,2]
[311883319,1705488634344,-499.99,0.00021038,2]
[311883321,1705488634353,-167.64708971,0.00021149,2]
[311883323,1705488634363,-150.0,0.00021191,2]
[311883325,1705488634371,-159.73,0.00021225,2]
[311883327,1705488634381,-167.64708971,0.00021385,2]
[311883329,1705488634390,-3608.0,0.00021481,2]
[311883331,1705488634399,-448.91,0.0002156,2]
[311883333,1705488634408,-167.64708971,0.0002162,2]
[311883334,1705488634417,-160.68,0.00021644,2]
[311883335,1705488634426,-247.06404064,0.00021696,2]
[311883336,1705488634436,-1566.36651191,0.00021696,2]
[311883337,1705488634447,-205.8781,0.00021717,2]
[311883338,1705488634457,-735.73621696,0.00021815,3]
[311883339,1705488634468,-1011.4467,0.00021815,2]
[311883340,1705488634477,-6012.5957,0.00021815,2]
[311883341,1705488634487,-250.0,0.00021817,2]
[311883342,1705488634498,-5000.0,0.00021817,2]
[311883343,1705488634507,-1000.0,0.00021817,2]
[311883344,1705488634517,-55555.0,0.00021817,2]
[311883345,1705488634527,-852.04352415,0.00021817,2]
[311883346,1705488634537,-967.58944415,0.00021817,2]
[311883347,1705488634547,-307.66575284,0.00021817,2]
[311883348,1705488634557,-167.64708971,0.00021856,2]
[311883349,1705488634566,-215.48008362,0.00021893,2]
[311883350,1705488634576,-3588.0,0.000219,2]
[311883351,1705488634585,-5168.25727717,0.000219,2]
[311883352,1705488634597,-21317.5,0.000219,2]
[311883362,1705488638070,-21055.24272283,0.000219,2]
[311883363,1705488638080,-1390.33,0.000219,2]
[311883364,1705488638090,-1135.9003841,0.00021915,2]
[311883365,1705488638099,-155.0,0.00021915,2]
[311883366,1705488638109,-227.75696778,0.00021915,2]
[311883367,1705488638118,-5909.90542828,0.00021915,2]
[311883368,1705488638128,-501.28849694,0.00021915,2]
[311883369,1705488638137,-265.40939354,0.00021915,2]
[311883370,1705488638147,-155.30397585,0.00021915,2]
[311883371,1705488638156,-3675.18653702,0.00021915,4]
[311883372,1705488638165,-354.41599177,0.00021915,2]
[311883373,1705488638175,-4486.26727607,0.00021915,2]
[311883374,1705488638184,-3004.11480193,0.00021915,2]
[311883375,1705488638198,-184.16613493,0.00021916,2]
[311883376,1705488638208,-1911.34999998,0.00021916,2]
[311883377,1705488638217,-155.0,0.00021916,2]
[311883378,1705488638227,-42387.82896409,0.00021916,2]
[311883379,1705488638236,-552.57,0.00021916,2]
[311883380,1705488638246,-7447.48125851,0.00021917,2]
[311883381,1705488638255,-544.00662593,0.00021917,2]
[311883382,1705488638265,-712.39,0.00021917,2]
[311883383,1705488638274,-500.0,0.00021917,2]
[311883384,1705488638283,-500.0,0.00021917,2]
[311883385,1705488638293,-500.0,0.00021917,2]
[311883386,1705488638302,-500.0,0.00021917,2]
[311883387,1705488638311,-500.0,0.00021917,2]
[311883388,1705488638322,-500.0,0.00021917,2]
[311883389,1705488638331,-500.0,0.00021917,2]
[311883390,1705488638340,-500.0,0.00021917,2]
[311883391,1705488638349,-500.0,0.00021917,2]
[311883392,1705488638359,-233.35380163,0.00021917,2]
[311883393,1705488638368,-500.0,0.00021917,2]